Cogmind - Beta 15 @@@ ROGUE MODE // 2025.10.04 @ 18:56:36 Player: ty-ler64 Result: Destroyed by J5-8QO(R) with Subdweller Laser Performance ------------- Evolutions (0) 0 Regions Visited (2) 400 Robots Destroyed (9) 45 Value Destroyed (316) 316 Prototype IDs (2) 40 Alien Tech Used (0) 0 Bonus (-17) -17 TOTAL SCORE: 784 Bonus ------- Friendly Fire -17 Cogmind --------- Core Integrity 0/250 Matter 296/300 Energy 249/250 System Corruption 0% Temperature Cool (14) Movement Walking (190) Ox1 Location -10/Subcaves Parts ------- > --- POWER (1) -------- Ion Engine > --- PROPULSION (2) --- Aluminum Leg Aluminum Leg > --- UTILITY (2) ------ Medium Storage Unit Visual Processing Unit > --- WEAPON (2) ------- Particle Gun Light Assault Rifle > --- INVENTORY (10) --- Light Ion Engine Aluminum Leg Aluminum Leg Visual Processing Unit Visual Processing Unit Subdweller Optics ECM Suite Scrap Shield Dirty Datajack (20) Peak State ------------ > --- POWER ------------ Light Nuclear Core > --- PROPULSION ------- Aluminum Leg Aluminum Leg > --- UTILITY ---------- Medium Storage Unit Visual Processing Unit > --- WEAPON ----------- Beam Cannon Light Assault Rifle > --- INVENTORY -------- Light Ion Engine Aluminum Leg Aluminum Leg Aluminum Leg Visual Processing Unit Visual Processing Unit Visual Processing Unit Seismic Detector ECM Suite [Rating: 11] Favorites ----------- Power Ion Engine Engine Ion Engine Power Core Light Nuclear Core Propulsion Aluminum Leg Leg Aluminum Leg Flight Unit VTOL Module Utility Medium Storage Unit Device ECM Suite Storage Medium Storage Unit Processor Visual Processing Unit Weapon Light Assault Rifle Energy Gun Particle Gun Energy Cannon Beam Cannon Ballistic Gun Light Assault Rifle Launcher Grenade Launcher Build | -11 -10 -10 ------- Run | Yrd Mat Sub Slots Evolved . | . . . Power . | . . . Propulsion . | . . . Utility . | . . . Weapon . | . . . Parts Attached 18 | 4 14 . Power 3 | 1 2 . Engine 2 | 1 1 . Core 1 | . 1 . Reactor . | . . . Propulsion 4 | . 4 . Treads . | . . . Leg 3 | . 3 . Wheel . | . . . Hover . | . . . Flight 1 | . 1 . Utility 5 | 1 4 . Device 1 | . 1 . Storage 2 | 1 1 . Processor 2 | . 2 . Hackware . | . . . Protection . | . . . Artifact . | . . . Weapon 6 | 2 4 . Energy Gun 2 | 1 1 . Energy Cannon 1 | . 1 . Ballistic Gun 2 | 1 1 . Ballistic Cannon . | . . . Launcher 1 | . 1 . Special Weapon . | . . . Impact Weapon . | . . . Slashing Weapon . | . . . Piercing Weapon . | . . . Special Melee Weapon . | . . . Unidentified Prototypes . | . . . Parts Lost 2 | . 2 . Power 1 | . 1 . Propulsion . | . . . Utility . | . . . Weapon 1 | . 1 . Highest Loss Streak 1 | . 1 . To Critical Strikes . | . . . Average Backups 6 | 3 6 8 Power . | . 1 1 Propulsion 2 | 1 2 2 Utility 3 | . 2 5 Weapon . | . . . Tool/Special . | . . . Unused Backups 14 | . 3 11 Power 1 | . . 1 Propulsion 3 | . 1 2 Utility 8 | . 1 7 Weapon . | . . . Tool/Special 2 | . 1 1 Average Slot Usage (%) 95 | . 94 100 Engine 13 | . 12 14 Leg 26 | . 25 28 Device 3 | . 4 . Storage 14 | . 14 14 Processor 9 | . 8 14 Energy Gun 8 | . 6 14 Energy Cannon 2 | . 3 . Ballistic Gun 12 | . 11 14 Launcher 4 | . 5 . Peak Build Rating 11 | 4 11 11 Average Rating 7 | 3 7 10 On Entrance 4 | . 4 10 Naked Turns . | . . . Heaviest Build 23 | 14 23 19 Greatest Support 20 | 3 20 10 Greatest Overweight (x) 4 | 4 4 1 Average Overweight (x) . | 3 . 1 Largest Inventory Capacity 10 | 8 10 10 Average Capacity 9 | 7 9 10 Most Carried 10 | 5 10 10 Average Carried 7 | 3 6 9 Final Capacity 10 | 8 10 10 Final Carried 10 | 4 8 10 Class Distribution -------------------- 100% | Mutant Dominant Class ---------------- Mutant | -10/Materials Mutant | -10/Subcaves Resources | -11 -10 -10 ----------- Run | Yrd Mat Sub Matter Collected 506 | 182 303 21 Remotely . | . . . Salvage Created 382 | . 382 . Parts 20 | . 20 . Haulers Intercepted . | . . . Recyclers Shooed 1 | . 1 . Parts Field Recycled . | . . . Retrieved Matter . | . . . Parts Self-Destructed . | . . . Prevented . | . . . Kills | -11 -10 -10 ------- Run | Yrd Mat Sub Combat Hostiles Destroyed 7 | . 7 . Guns 4 | . 4 . Cannons 2 | . 2 . AOE 1 | . 1 . Classes Destroyed 3 | . 3 . Recycler 1 | . 1 . Watcher 1 | . 1 . Grunt 7 | . 7 . Best Kill Streak 4 | . 4 . Combat Bots Only 3 | . 3 . Max Kills in Single Turn 1 | . 1 . Gunslinging . | . . . Exploded 1 | . 1 . Melee . | . . . Uniques/NPCs Destroyed . | . . . Combat | -11 -10 -10 -------- Run | Yrd Mat Sub Hostile Shots Fired 91 | . 81 10 Missed 26 | . 25 1 Hits 65 | . 56 9 Projectile 65 | . 56 9 Critical Strikes 2 | . 2 . Damage Taken 910 | . 727 183 Core 257 | . 194 63 Absorbed by Shields . | . . . Core Remaining (%) 100 | 100 . . Volleys Fired 40 | . 35 5 Largest 2 | . 2 2 Hottest 85 | . 80 85 Shots Fired 70 | . 60 10 Gun 36 | . 26 10 Cannon 27 | . 27 . Launcher 7 | . 7 . Special . | . . . Kinetic 30 | . 25 5 Thermal 32 | . 27 5 Explosive 7 | . 7 . Electromagnetic 1 | . 1 . Robot Hit Streak 5 | . 5 3 Robot Miss Streak 5 | . 5 1 Penetration Max . | . . . Secondary Targets . | . . . Shots Hit Robots 37 | . 31 6 Core Hits 17 | . 16 1 Critical Kills . | . . . Critical Parts Destroyed 1 | . 1 . Critical Strikes 1 | . 1 . Destroy 1 | . 1 . Melee Attacks . | . . . Impact . | . . . Slashing . | . . . Piercing . | . . . Sneak Attacks . | . . . Combat Hostiles . | . . . Follow-up Attacks . | . . . Damage Inflicted 741 | . 680 61 Guns 195 | . 134 61 Cannons 301 | . 301 . Explosions 245 | . 245 . Melee . | . . . Ramming . | . . . Kinetic 145 | . 116 29 Thermal 388 | . 356 32 Explosive 190 | . 190 . Electromagnetic 18 | . 18 . Impact . | . . . Slashing . | . . . Piercing . | . . . Highest Corruption . | . . . Average Corruption . | . . . Corruption Purged . | . . . Corruption Blocked . | . . . Overload Shots . | . . . Overflow Damage 43 | . 43 . Projectiles . | . . . Explosions 43 | . 43 . Melee . | . . . Knockbacks . | . . . Impact . | . . . Kinetic . | . . . Secondary . | . . . Self-Inflicted Damage 40 | . 40 . Shots 2 | . 2 . Rammed . | . . . Targets Rammed . | . . . Kicked . | . . . Crushed . | . . . Highest Temperature 467 | . 467 32 Average Temperature 163 | . 177 9 Received Heat Transfer 477 | . 423 54 Effects 5 | . 5 . Energy Bleed 1 | . 1 . Interference 1 | . 1 . Matter Decay 1 | . 1 . Short Circuit 2 | . 2 . Siege Activations . | . . . Martial Activations . | . . . Shielding Activations . | . . . Robots Disrupted . | . . . Combat Hostiles . | . . . Robots Corrupted . | . . . Combat Hostiles . | . . . Parts Fried . | . . . Impact Corruptions . | . . . Robots Melted . | . . . Combat Hostiles . | . . . Parts Melted 1 | . 1 . Heat Transferred 753 | . 679 74 Parts Sabotaged . | . . . Parts Stolen . | . . . Parts Stripped . | . . . Power Chain Reactions . | . . . Alert | -11 -10 -10 ------- Run | Yrd Mat Sub Maximum Alert Level . | . . . Low Security (%) 100 | 100 100 . Level 1 . | . . . Level 2 . | . . . Level 3 . | . . . Level 4 . | . . . Level 5 . | . . . High Security . | . . . Max Security . | . . . Peak Influence 140 | . 140 . Initial . | . . . Average 22 | . 25 . Influence Increases 255 | . 255 . Destroy 0b10 Robot/C 140 | . 140 . Destroy 0b10 Robot/NC 10 | . 10 . Destroy Leader 32 | . 32 . Disable Machine 45 | . 45 . Destroy Structure 28 | . 28 . Influence Decreases 255 | . 255 . Time Decay 245 | . 245 . Lost Part 10 | . 10 . Squads Dispatched 1 | . 1 . Investigation . | . . . Extermination . | . . . Reinforcement 1 | . 1 . Assault . | . . . Garrison . | . . . Intercept . | . . . Searches Triggered . | . . . Construction Impeded . | . . . Haulers Reinforced . | . . . Active Scanning Responses . | . . . Cargo Convoy Interrupts . | . . . Stealth | -11 -10 -10 --------- Run | Yrd Mat Sub Distress Signals . | . . . Communications Jammed . | . . . Distress Signals . | . . . Times Spotted 14 | . 11 3 Peak Tracking Total 3 | . 3 2 Tactical Retreats . | . . . Traps | -11 -10 -10 ------- Run | Yrd Mat Sub Traps Triggered . | . . . Indirectly . | . . . Trap Hack Attempts . | . . . Triggered . | . . . Disarmed . | . . . Reprogrammed . | . . . Reused . | . . . Traps Extracted . | . . . Installed . | . . . Triggered . | . . . Machines | -11 -10 -10 ---------- Run | Yrd Mat Sub Machines Disabled 3 | . 3 . Max in Single Turn 2 | . 2 . Machines Repaired . | . . . Machines Dismantled . | . . . Machines Sabotaged . | . . . Overloaded Fab Kills . | . . . Hacking | -11 -10 -10 --------- Run | Yrd Mat Sub Machines Accessed 3 | . 3 . Terminals 2 | . 2 . Fabricators . | . . . Repair Stations . | . . . Recycling Units 1 | . 1 . Scanalyzers . | . . . Garrison Access . | . . . Total Hacks 4 | . 4 . Successful 2 | . 2 . Failed 2 | . 2 . Catastrophic 1 | . 1 . Database Lockouts . | . . . Manual . | . . . Terminals 3 | . 3 . Fabricators . | . . . Repair Stations . | . . . Recycling Units 1 | . 1 . Scanalyzers . | . . . Garrison Access . | . . . Terminal Hacks 2 | . 2 . Record 1 | . 1 . Prototype ID Bank 1 | . 1 . Fabricator Hacks . | . . . Repair Station Hacks . | . . . Recycling Unit Hacks . | . . . Scanalyzer . | . . . Garrison Access Hacks . | . . . Unauthorized Hacks . | . . . Terminals . | . . . Fabricators . | . . . Repair Stations . | . . . Recycling Units . | . . . Scanalyzers . | . . . Garrison Access . | . . . Data Cores Recovered . | . . . Used . | . . . Hacking Detections 2 | . 2 . Full Trace Events . | . . . Feedback Events . | . . . Feedback Blocked . | . . . Robot Schematics Acquired . | . . . Robots Built . | . . . Authchips . | . . . Time . | . . . Total Robot Build Rating . | . . . Part Schematics Acquired . | . . . Parts Built . | . . . Authchips . | . . . Time . | . . . Total Part Build Rating . | . . . Parts Repaired . | . . . Time . | . . . Parts Recycled . | . . . Recycled Matter . | . . . Retrieved Matter . | . . . Retrieved Components . | . . . Parts Scanalyzed . | . . . Part Schematics Acquired . | . . . Parts Damaged . | . . . Bothacking | -11 -10 -10 ------------ Run | Yrd Mat Sub Used RIF Installer . | . . . Robots Hacked . | . . . Non-combat . | . . . Combat . | . . . Robot Hacks Applied . | . . . Relay Couplers Released . | . . . Fabnet Peak Effective % . | . . . Robots Rewired . | . . . Allies Hacked . | . . . Hacks Repelled . | . . . Allies | -11 -10 -10 -------- Run | Yrd Mat Sub Total Allies . | . . . Largest Group . | . . . Highest-Rated Group . | . . . Highest-Rated Ally . | . . . Total Orders . | . . . Ally Attacks . | . . . Total Damage . | . . . Kills . | . . . Allies Corrupted . | . . . Allies Melted . | . . . Intel | -11 -10 -10 ------- Run | Yrd Mat Sub Active Infowar (turns) 1180 | . 931 249 Optics 855 | . 606 249 ECM 325 | . 325 . Robot Analysis Total . | . . . Derelict Logs Recovered . | . . . Drone Launches . | . . . Drone Recoveries . | . . . Exploration | -11 -10 -10 ------------- Run | Yrd Mat Sub Turns Passed 1516 | 170 1097 249 Spaces Moved 820 | 65 635 120 Core 89 | 65 24 . Treads . | . . . Legs 731 | . 611 120 Wheels . | . . . Hover . | . . . Flight . | . . . Fastest Speed 50 | 50 120 190 Average Speed 161 | 212 150 190 Slowest Speed 250 | 250 250 190 Overloaded Moves . | . . . Propulsion Burnouts . | . . . Robots Hopped . | . . . Potential Cave-ins . | . . . Cave-ins Triggered . | . . . Exploration Rate (%) 15 | 4 35 6 Regions Visited 2 Branch Regions 1 Pre-discovered Areas . | . . . Known Exits Taken . | . . . Unknown Exits Taken 2 | 1 1 . Scrap Searched . | . . . Spaces Dug . | . . . Terrain Destroyed 27 | . 27 . Melee . | . . . Projectile . | . . . AOE 27 | . 27 . Terrain Rammed . | . . . Walls Destroyed . | . . . Machines Disabled . | . . . Actions | -11 -10 -10 --------- Run | Yrd Mat Sub Total 960 | 98 726 136 Wait 29 | 22 7 . Move 818 | 64 634 120 Hop . | . . . Pick Up 36 | 8 22 6 Fast Attach . | . . . Attach 16 | 4 12 . Detach . | . . . Swap 3 | . 3 . Drop 18 | . 13 5 Fire 40 | . 35 5 Melee . | . . . Ram . | . . . Kick . | . . . Crush . | . . . Escape Stasis . | . . . Rewire . | . . . Trap . | . . . Miscellaneous . | . . . Route ------- -11/Scrapyard -10/Materials (discovered 2 exits: [*Min] / [*Sub]) -10/Subcaves History --------- Turn | Location | Event 49 | -11/Scrapyard | Discovered new exit (range 16) 171 | -11/Scrapyard | Entered Materials 332 | -10/Materials | Build established: Mutant 717 | -10/Materials | Core integrity fell below 50% 823 | -10/Materials | Discovered new exit (range 12) 852 | -10/Materials | Discovered new exit (range 9) 1268 | -10/Materials | Entered Subcaves 1269 | -10/Subcaves | Approached by a straggling Scientist 1509 | -10/Subcaves | Core integrity fell below 20% 1517 | -10/Subcaves | Destroyed by J5-8QO(R) with Subdweller Laser Last Messages --------------- Acquired Scrap Shield Fragment. Dropped Scrap Shield Fragment. Acquired Dirty Datajack. Acquired 3 matter. Subatomizers dissect the Sub. Machine Gun. Acquired 18 matter. Subatomizers dissect the Sub. Machine Gun. Acquired Sub. Optics. Dropped Sub. Optics. Subatomizers dissect the Sub. Machine Gun. Acquired Sub. Optics. Dropped Seismic Detector. Dropped Disposable Heat Sink. Acquired Scrap Shield. VF-VF5(c): "I think it's somewhere west of here" Subatomizers dissect the Sub. Machine Gun. VF-VF5(c): "I think it's somewhere west of here" Subatomizers dissect the Sub. Optics. VF-VF5(c): "I think it's somewhere west of here" K1-RUV(h) destroyed. Map ----- +----------------------------------------------------+ | ?????????????????????????????????????????????????? | | ?????????????????????????????????????????????????? | | ?????????????????????????????????????????????????? | | ?????????????????????????????????????????????????? | | ?????????????????????????????????????????????????? | | ?????????????????????????????????????????????????? | | ?????????????????????????????????????????????????? | | ?????????????????????????????????????????????????? | | ?????????????????????????????????????????????????? | | ?????????????????????????????????????????????????? | | ?????????????????????????????????????????????????? | | ????????????????#?????? ?????????????????????????? | | ????????????????? ????? ?????????????????????????? | | ????????????????? ???? ?????????????????????????? | | ?????????????????? """" #????????????????????????? | | ??????????????????? """" ????????????????????????? | | ???????????????????? " ##??????????????????????? | | ????????????????????? """ ##?????????????????????? | | ?????????????????????? " % ##????????????????????? | | ??????????????????????? " #????????????????????? | | ???????????????????????# " ?????????????????????? | | ???????????????????????# ""#?????????????????????? | | ???????????????????????#==R###???????????????????? | | ??????????????????????###Rc ##??????????????????? | | ??????????????????????# [! #??????????????????? | | ??????????????????????# @ ##?????????????????? | | ??????????????????????# #?????????????????? | | ??????????????????????## #?????????????????? | | ???????????????????????# ##????????????????? | | ???????????????????????# " ##???????????????? | | ???????????????????????## " #???????????????? | | ????????????????????????# "" #???????????????? | | ????????????????????????# " #???????????????? | | ????????????????????????# # " "" ????????????? | | ??????????####????####### ### "" " ????????????? | | ?????????## ###### #?" ## ???????????? | | ?????????# ## #?##"#? #??????????? | | ?????????# #???##?? #??????????? | | ?????????# ###???????? #??????????? | | ?????????## ##??????????????????????? | | ??????????### ###???????????????????????? | | ?????????##?# ##??#####??????????????????? | | ?????????# ## ### ##?## ""#??????????????????? | | ?????????# ### ! ### #??????????????????? | | ?????????# =&[## #??????????????????? | | ?????????# [% %!% #??????????????????? | | ?????????# ##!&*|! ##??????????????????? | | ?????????## ## * ##???????????????????? | | ????????### ### #????????????????????? | | ????????# #?### #????????????????????? | +----------------------------------------------------+ Best States ------------- Heat Dissipation 25 Energy Generation 14 Energy Capacity 250 Matter Stores 300 Matter Capacity 300 Sight Range 18 Terrain Scan Density 10 ECM Strength 1 Evasion (%) 55 Item Schematics ----------------- None Robot Schematics ------------------ None Fabricated ------------ Nothing Repaired ---------- Nothing Alien Tech Used ----------------- None Achievements -------------- Let's See Who's Tougher Challenges ------------ None Game ------ Seed HeavyQuantumCleaver Manual? 0 Play Time 00:20:11 Cumulative 1.7 hours Start 2025.10.04 @ 13:05:22 End 2025.10.04 @ 18:56:36 Sessions 1 Manual Loads 0 Difficulty Rogue Special Mode None Game No. 3 Rogue 3 Adventurer 0 Explorer 0 Win Type - Total 0 Types 0/0/0/0/0/0/0/0/0/0 Lore% 3 Gallery% 3 Achievement% 3 Wizard Run 0 Options --------- Layout 1 ASCII 0 Keyboard 0 Movement Mouse Keybinds 0 Fullscreen 2 Font 28/CherryShadow Map View 59x45 Zoom Use 8% Tactical HUD 0 Map Filters NONE Filters NONE Steam 1 RUN: 2c05ea54-710e-44d6-80a1-d1db0c784342